bitfinex/quotes_BTCUSD_20250901
["timestamp","ask_amount","ask_price","bid_price","bid_amount"]
[1756714037487,0.25104,109850.0,109840.0,0.44202267]
[1756714038103,0.10570089,109850.0,109840.0,0.04493791]
[1756714038309,0.10570089,109850.0,109840.0,0.04721394]
[1756714038945,0.10570089,109850.0,109840.0,0.04493791]
[1756714039588,0.10570089,109850.0,109830.0,0.39708476]
[1756714039789,0.07,109850.0,109840.0,0.00227603]
[1756714039997,0.2504,109850.0,109830.0,0.39708476]
[1756714040332,0.2504,109850.0,109840.0,0.002]
[1756714041181,0.74046477,109850.0,109820.0,4.736e-05]
[1756714041391,0.93166285,109850.0,109830.0,0.002]
[1756714041601,0.18208302,109840.0,109830.0,0.002]
[1756714042027,1.01214779,109840.0,109830.0,0.002]
[1756714042445,0.61506303,109840.0,109830.0,0.002]
[1756714043387,0.34,109830.0,109820.0,4.736e-05]
[1756714043591,0.52016,109830.0,109820.0,4.736e-05]
[1756714044212,0.7022596,109830.0,109820.0,4.736e-05]
[1756714044881,0.7022596,109830.0,109820.0,0.00404736]
[1756714046135,0.79523961,109830.0,109820.0,0.00404736]
[1756714046544,1.19232437,109830.0,109820.0,0.00404736]
[1756714046762,0.79523961,109830.0,109820.0,0.00404736]
[1756714046985,0.61230001,109830.0,109820.0,0.00404736]
[1756714047203,0.5220996,109830.0,109820.0,0.00404736]
[1756714047419,0.7014996,109830.0,109820.0,0.00404736]
[1756714047831,0.7014996,109830.0,109820.0,4.736e-05]
[1756714049294,1.19156437,109830.0,109820.0,4.736e-05]
[1756714049604,0.79399961,109830.0,109820.0,4.736e-05]
[1756714051270,1.19108437,109830.0,109820.0,4.736e-05]
[1756714051828,0.61162001,109830.0,109820.0,4.736e-05]
[1756714052503,0.34,109830.0,109820.0,4.736e-05]
[1756714052706,0.34,109840.0,109820.0,0.39940857]
[1756714052823,0.17856,109830.0,109820.0,0.45528602]
[1756714053235,0.34,109840.0,109820.0,0.45528602]
[1756714053447,0.34,109840.0,109820.0,0.63740221]
[1756714053448,0.17848,109830.0,109820.0,0.63740221]
[1756714053647,0.34,109840.0,109820.0,0.63740221]
[1756714053866,0.17848,109830.0,109820.0,0.24031745]
[1756714054081,0.34,109840.0,109820.0,0.63940221]
[1756714054288,0.07,109850.0,109830.0,0.39708476]
[1756714054497,0.17824,109840.0,109830.0,0.47123356]
[1756714054901,0.41,109850.0,109830.0,0.65333176]
[1756714055115,0.17812,109840.0,109830.0,0.65333176]
[1756714055527,0.41,109850.0,109830.0,0.65333176]
[1756714055757,0.17816,109840.0,109830.0,0.65333176]
[1756714056391,0.17816,109840.0,109830.0,0.47123356]
[1756714056599,0.17816,109840.0,109830.0,0.0741488]
[1756714056809,0.17816,109840.0,109830.0,0.39708476]
[1756714057022,0.17816,109840.0,109820.0,0.05820126]
[1756714057244,0.3602434,109840.0,109820.0,4.736e-05]
[1756714057662,0.1820996,109830.0,109820.0,4.736e-05]
[1756714057858,0.5220996,109830.0,109820.0,4.736e-05]
[1756714058130,1.01216437,109830.0,109820.0,4.736e-05]
[1756714058890,0.61507961,109830.0,109820.0,4.736e-05]
[1756714059098,1.01216437,109830.0,109820.0,4.736e-05]
[1756714059328,1.02825592,109830.0,109820.0,4.736e-05]
[1756714060606,1.02825592,109830.0,109820.0,0.00204736]
[1756714062055,1.04919474,109830.0,109820.0,0.00204736]
[1756714062262,6.04919474,109830.0,109820.0,0.00204736]
[1756714063748,6.04919474,109830.0,109820.0,4.736e-05]
[1756714064178,6.05019474,109830.0,109820.0,4.736e-05]
[1756714064384,6.04919474,109830.0,109820.0,4.736e-05]
[1756714064801,5.65310998,109830.0,109820.0,4.736e-05]
[1756714065032,6.05019474,109830.0,109820.0,4.736e-05]
[1756714067287,6.07756474,109830.0,109820.0,4.736e-05]
[1756714071191,6.17756474,109830.0,109820.0,4.736e-05]
[1756714073410,0.94018953,109790.0,109780.0,0.39860125]
[1756714073729,1.27904954,109790.0,109780.0,0.39864866]
[1756714074138,6.27904954,109790.0,109780.0,0.39864866]
[1756714075073,5.88196478,109790.0,109780.0,0.39864866]
[1756714075281,6.27904954,109790.0,109780.0,0.39864866]
[1756714076318,6.10316954,109790.0,109780.0,0.39864866]
[1756714076518,0.88164478,109790.0,109780.0,0.39864866]
[1756714076647,0.69967883,109790.0,109780.0,0.43851353]
[1756714076848,0.35967883,109790.0,109780.0,0.43851353]
[1756714077069,0.67874001,109790.0,109780.0,0.44051353]
[1756714077267,0.50298001,109790.0,109780.0,0.44051353]
[1756714077491,0.68514596,109790.0,109780.0,0.40064866]
[1756714077692,0.86074596,109790.0,109780.0,0.40064866]
[1756714077893,1.27876954,109790.0,109780.0,0.40064866]
[1756714078255,0.88168478,109790.0,109780.0,0.40064866]
[1756714078553,0.92100359,109790.0,109780.0,0.44071353]
[1756714078766,1.27900954,109790.0,109780.0,0.40064866]
[1756714078990,6.27900954,109790.0,109780.0,0.40064866]
[1756714080491,6.27916954,109790.0,109780.0,0.40064866]
[1756714081632,5.70608478,109790.0,109780.0,0.40064866]
[1756714081834,6.27916954,109790.0,109780.0,0.40064866]
[1756714083063,6.32916954,109790.0,109780.0,0.40064866]
[1756714083275,6.32916954,109790.0,109730.0,0.0004]
[1756714083276,0.00911078,109760.0,109730.0,0.0004]
[1756714083487,0.18224895,109740.0,109730.0,0.00048664]
[1756714083712,0.45082896,109740.0,109730.0,0.00048664]
[1756714083933,0.26858001,109740.0,109730.0,0.00048664]
[1756714084598,0.26854001,109740.0,109730.0,0.00148664]
[1756714085061,0.26854001,109740.0,109730.0,0.00048664]
[1756714085256,0.09298001,109740.0,109730.0,0.00248664]
[1756714085492,0.09298001,109740.0,109730.0,0.1847522]
[1756714085683,0.17632,109740.0,109730.0,0.26816407]
[1756714085920,0.17524,109740.0,109730.0,0.58183696]
[1756714086153,0.07004,109750.0,109740.0,0.18224895]
[1756714086426,0.24616,109750.0,109740.0,0.57933371]
[1756714086669,0.24616,109750.0,109740.0,0.18224895]
[1756714086913,0.24616,109750.0,109740.0,0.22824707]
[1756714087121,0.24616,109750.0,109740.0,0.18224895]
[1756714087352,0.41004,109770.0,109750.0,0.18222649]
[1756714087559,0.07004,109770.0,109760.0,0.58157819]
[1756714087817,0.24708,109770.0,109760.0,0.18221574]
[1756714088059,0.24708,109770.0,109760.0,0.03644422]
[1756714088271,0.98416476,109770.0,109740.0,0.63391997]
[1756714088471,0.98416476,109770.0,109740.0,0.23283521]
[1756714088689,0.58708,109770.0,109750.0,0.18323214]
[1756714088949,0.58708,109770.0,109750.0,0.001]
[1756714089170,0.614459,109770.0,109740.0,0.23283521]
[1756714089381,0.614459,109770.0,109740.0,0.31501375]
[1756714090023,1.286724,109770.0,109740.0,0.08217854]
[1756714090301,1.10452377,109770.0,109740.0,0.19135929]
[1756714090528,1.10552377,109770.0,109760.0,0.006]
[1756714090743,0.70743901,109770.0,109740.0,0.19235929]
[1756714091175,0.70843901,109770.0,109740.0,0.19835929]
[1756714091367,1.18924469,109760.0,109730.0,0.18275173]
[1756714091601,0.60994001,109760.0,109730.0,0.62636452]
[1756714092458,0.60994001,109760.0,109740.0,0.001]
[1756714092664,0.79215684,109760.0,109740.0,0.001]
[1756714093132,0.60994001,109760.0,109740.0,0.18324808]
[1756714093336,0.60994001,109760.0,109740.0,0.08218899]
[1756714093560,0.60994001,109760.0,109730.0,0.0379014]
[1756714093773,0.60994001,109760.0,109730.0,0.00048664]
[1756714093774,0.5793172,109750.0,109730.0,0.00048664]
[1756714093995,0.58732,109740.0,109730.0,0.00348664]
[1756714094428,1.25963372,109740.0,109730.0,0.00048664]
[1756714094635,1.07738477,109740.0,109730.0,0.00048664]
[1756714094851,0.68030001,109740.0,109730.0,0.00048664]
[1756714095041,0.68030001,109740.0,109730.0,0.00148664]
[1756714095240,0.68130001,109740.0,109730.0,0.00748664]
[1756714095461,0.68130001,109740.0,109730.0,0.00048664]
[1756714095684,0.68030001,109740.0,109730.0,0.00148664]
[1756714095884,0.58696,109740.0,109730.0,0.00148664]
[1756714096086,0.41004,109740.0,109720.0,0.57085337]
[1756714096303,0.614345,109740.0,109720.0,0.65164269]
[1756714096640,0.24696,109740.0,109720.0,0.25455793]
[1756714096768,0.24696,109740.0,109730.0,0.00227831]
[1756714096969,0.24796,109740.0,109730.0,0.00627831]
[1756714097219,0.24684,109740.0,109730.0,0.00327831]
[1756714097594,0.07004,109740.0,109730.0,0.18554387]
[1756714097812,0.24784,109740.0,109730.0,0.08471866]
[1756714098175,0.24684,109740.0,109730.0,0.18554387]
[1756714098383,0.24784,109740.0,109730.0,0.005]
[1756714100043,0.07104,109740.0,109730.0,0.18726556]
[1756714100249,0.24772,109740.0,109730.0,0.005]
[1756714101707,0.24772,109740.0,109730.0,0.00727831]
[1756714101923,0.24772,109740.0,109730.0,0.18954387]
[1756714102138,0.24772,109740.0,109730.0,0.27223556]
[1756714102742,0.07104,109740.0,109730.0,0.27223556]
[1756714102954,0.24732,109740.0,109730.0,0.27223556]
[1756714103378,0.24732,109740.0,109730.0,0.08997]
[1756714103586,0.24732,109740.0,109730.0,0.18954387]
[1756714103746,0.24732,109740.0,109730.0,0.18726556]
[1756714103952,0.24732,109740.0,109730.0,0.005]
[1756714104157,0.24732,109740.0,109730.0,0.00727831]
[1756714104571,0.24732,109740.0,109730.0,0.005]
[1756714104811,0.24732,109740.0,109730.0,0.00727831]
[1756714104968,0.24732,109740.0,109730.0,0.005]
[1756714107120,0.24708,109740.0,109730.0,0.005]
[1756714109690,0.24624,109740.0,109730.0,0.18954387]
[1756714109899,0.24624,109740.0,109730.0,0.08193877]
[1756714111552,0.24624,109740.0,109730.0,0.08421708]
[1756714112078,0.24624,109740.0,109730.0,0.08193877]
[1756714112844,0.24624,109740.0,109730.0,0.26648264]
[1756714113035,0.24624,109740.0,109730.0,0.08193877]
[1756714113235,0.24624,109740.0,109730.0,0.26648264]
[1756714113435,0.24624,109740.0,109730.0,0.08193877]
[1756714113839,0.24624,109740.0,109730.0,0.26648264]
[1756714114045,0.24624,109740.0,109730.0,0.08193877]
[1756714114444,0.24624,109740.0,109730.0,0.005]
[1756714116860,0.91855372,109740.0,109730.0,0.005]
[1756714117095,1.27949254,109740.0,109730.0,0.005]
[1756714118750,6.27949254,109740.0,109730.0,0.005]
[1756714121298,6.10429254,109740.0,109730.0,0.005]
[1756714121509,6.27949254,109740.0,109730.0,0.005]
[1756714121716,0.50402001,109740.0,109730.0,0.005]
[1756714121895,0.67922001,109740.0,109730.0,0.005]
[1756714122634,0.86146896,109740.0,109730.0,0.005]
[1756714122838,0.67922001,109740.0,109730.0,0.005]
[1756714123232,0.38744605,109740.0,109730.0,0.005]
[1756714123465,0.07008,109740.0,109730.0,0.18726556]
[1756714123693,0.07008,109740.0,109730.0,0.62135262]
[1756714124028,0.24528,109740.0,109730.0,0.62135262]
[1756714125650,0.24528,109740.0,109730.0,0.22426786]
[1756714126023,0.07008,109740.0,109730.0,0.22426786]
[1756714126227,0.24524,109740.0,109730.0,0.62135262]
[1756714126833,0.24524,109740.0,109730.0,0.71433263]
[1756714128665,0.027381,109760.0,109750.0,0.18223234]
[1756714128867,0.1421543,109780.0,109760.0,0.18220842]
[1756714129072,0.17512,109770.0,109760.0,0.57929318]
[1756714130099,0.17512,109770.0,109760.0,0.5793799]
[1756714130645,0.17512,109770.0,109760.0,0.18229514]
[1756714130872,0.17512,109770.0,109760.0,0.23260171]
[1756714132131,0.17512,109770.0,109760.0,0.23260903]
[1756714132347,0.17512,109770.0,109760.0,0.23360903]
[1756714133428,0.17512,109770.0,109760.0,0.05139329]
[1756714133609,0.17512,109770.0,109760.0,0.0926585]
[1756714133810,0.7544039,109770.0,109760.0,0.00108672]
[1756714133988,1.18738391,109770.0,109760.0,0.00108672]
[1756714134190,1.20832273,109770.0,109760.0,0.00108672]
[1756714134418,6.20832273,109770.0,109760.0,0.00108672]
[1756714135033,0.81123797,109770.0,109760.0,8.672e-05]
[1756714135239,6.20832273,109770.0,109760.0,8.672e-05]
[1756714135662,6.21132273,109770.0,109760.0,8.672e-05]
[1756714135872,6.20832273,109770.0,109760.0,8.672e-05]
[1756714136077,6.20932273,109770.0,109760.0,8.672e-05]
[1756714136487,6.21232273,109770.0,109760.0,8.672e-05]
[1756714136691,6.21132273,109770.0,109760.0,8.672e-05]
[1756714137098,6.21532273,109770.0,109760.0,8.672e-05]
[1756714137745,0.18224982,109740.0,109710.0,0.53094812]
[1756714137919,0.18224982,109740.0,109710.0,0.69664299]
[1756714137920,0.24508,109730.0,109710.0,0.69664299]
[1756714138352,0.027385,109720.0,109710.0,0.69664299]
[1756714138553,0.027385,109720.0,109710.0,0.20766032]
[1756714138754,0.027385,109720.0,109710.0,0.29697909]
[1756714139240,0.027385,109720.0,109710.0,0.11768031]
[1756714139485,0.027385,109720.0,109710.0,0.29997909]
[1756714139641,0.027385,109720.0,109710.0,0.29697909]
[1756714139996,0.027385,109720.0,109710.0,0.11568031]
[1756714140401,0.027385,109720.0,109710.0,0.00147704]
[1756714140617,0.20966717,109720.0,109710.0,0.00147704]
[1756714141244,0.20966717,109720.0,109710.0,0.00547704]
[1756714141445,0.027385,109720.0,109710.0,0.00547704]
[1756714142294,0.202345,109720.0,109710.0,0.58486058]
[1756714142517,0.027385,109720.0,109710.0,0.26449326]
[1756714142646,0.202345,109720.0,109710.0,0.7028292]
[1756714142848,0.202345,109720.0,109710.0,0.79580921]
[1756714143584,0.027385,109720.0,109710.0,0.79580921]
[1756714144016,0.027385,109720.0,109710.0,0.97076921]
[1756714144217,0.10952,109740.0,109730.0,0.18226556]
[1756714144417,0.10952,109740.0,109730.0,0.6158036]
[1756714144709,0.136903,109740.0,109730.0,0.6158036]
[1756714145310,0.136903,109740.0,109730.0,0.70878361]
[1756714145581,0.027383,109740.0,109730.0,0.70878361]
[1756714145706,0.17496,109740.0,109730.0,0.70878361]
[1756714145917,0.17496,109740.0,109730.0,0.70978361]
[1756714146621,0.17596,109740.0,109730.0,0.70978361]
[1756714148691,0.17596,109740.0,109730.0,0.31269885]
[1756714148866,0.17596,109740.0,109730.0,0.70978361]
[1756714151271,0.001,109740.0,109730.0,0.88462361]
[1756714152471,0.001,109740.0,109730.0,1.22362361]
[1756714153024,0.001,109740.0,109730.0,1.22962361]
[1756714153426,0.001,109740.0,109730.0,1.11039478]
[1756714153638,0.15424,109770.0,109750.0,0.18222635]
[1756714153848,0.15424,109770.0,109750.0,0.70964799]
[1756714154050,0.15424,109770.0,109750.0,0.03735687]
[1756714154421,0.15424,109770.0,109750.0,0.21958812]
[1756714154642,0.15424,109770.0,109750.0,0.03735687]
[1756714154831,0.15424,109770.0,109750.0,0.21967674]
[1756714155187,0.15424,109770.0,109750.0,0.03744442]
[1756714155188,0.33644002,109770.0,109750.0,0.03744442]
[1756714155394,0.82650479,109770.0,109750.0,0.00208755]
[1756714155735,0.64430477,109770.0,109750.0,0.00208755]
[1756714155909,0.24722001,109770.0,109750.0,0.1865947]
[1756714156111,0.17476,109760.0,109750.0,0.58140156]
[1756714156313,0.41004,109770.0,109760.0,0.18221574]
[1756714156516,0.5848,109770.0,109750.0,0.65867782]
[1756714157174,0.5848,109770.0,109750.0,0.26159306]
[1756714157484,0.5848,109770.0,109750.0,0.18431889]
[1756714157807,0.5848,109770.0,109750.0,0.18231889]
[1756714158012,0.5848,109770.0,109750.0,0.18331889]
[1756714158353,0.5848,109770.0,109760.0,0.002]
[1756714158701,0.5848,109770.0,109750.0,8.755e-05]
[1756714158911,1.16408483,109770.0,109750.0,0.00208755]
[1756714159116,1.25706484,109770.0,109750.0,0.00208755]
[1756714159332,0.17472,109760.0,109750.0,8.755e-05]
[1756714160976,0.17472,109760.0,109750.0,0.18459779]
[1756714161204,0.17472,109760.0,109750.0,0.07739188]
[1756714161415,0.17472,109760.0,109750.0,8.755e-05]
[1756714162113,0.17472,109760.0,109750.0,0.00208755]
[1756714162322,0.17464,109760.0,109750.0,0.58368255]
[1756714162542,0.07004,109770.0,109760.0,0.18221574]
[1756714162749,0.24468,109770.0,109760.0,0.18221574]
[1756714162972,0.24468,109770.0,109760.0,0.25857778]
[1756714163189,0.24468,109770.0,109760.0,0.07636204]
[1756714163396,0.24468,109770.0,109750.0,0.18431989]
[1756714164038,0.24568,109770.0,109750.0,0.18431989]
[1756714164248,0.24568,109770.0,109750.0,0.18231989]
[1756714164461,0.24468,109770.0,109750.0,8.755e-05]
[1756714164725,0.24468,109770.0,109760.0,0.001]
[1756714165348,0.24568,109770.0,109760.0,0.001]
[1756714165760,0.64276476,109770.0,109760.0,0.001]
[1756714166001,0.91794391,109770.0,109750.0,8.755e-05]
[1756714166212,0.18221574,109760.0,109750.0,8.755e-05]
[1756714166424,0.5793005,109760.0,109750.0,8.755e-05]
[1756714166647,0.18221574,109760.0,109750.0,8.755e-05]
[1756714166869,0.67228051,109760.0,109750.0,8.755e-05]
[1756714167073,0.69321933,109760.0,109750.0,8.755e-05]
[1756714167497,0.86777933,109760.0,109750.0,8.755e-05]
[1756714167949,0.69321933,109760.0,109750.0,8.755e-05]
[1756714168161,0.47069457,109760.0,109750.0,8.755e-05]
[1756714168370,0.86777933,109760.0,109750.0,8.755e-05]
[1756714168609,0.69321933,109760.0,109750.0,0.00208755]
[1756714168834,0.86777933,109760.0,109750.0,0.00208755]
[1756714170557,0.86873933,109760.0,109750.0,8.755e-05]
[1756714170967,0.86873933,109760.0,109750.0,0.00108755]
[1756714170968,0.69421933,109760.0,109750.0,0.00108755]
[1756714171249,0.86773933,109760.0,109750.0,0.00108755]
[1756714171687,0.86873933,109760.0,109750.0,0.00108755]
[1756714172303,0.89612533,109760.0,109750.0,0.00108755]
[1756714172531,0.89608533,109760.0,109750.0,0.00108755]
[1756714172742,0.72160533,109760.0,109750.0,0.00108755]
[1756714172951,0.89608533,109760.0,109750.0,0.00108755]
[1756714174033,0.49900057,109760.0,109750.0,0.00108755]
[1756714174250,0.89608533,109760.0,109750.0,0.00108755]
[1756714175986,6.23608533,109760.0,109750.0,0.00108755]
[1756714177070,1.23604533,109760.0,109750.0,0.00108755]
[1756714177969,0.83896057,109760.0,109750.0,0.00108755]
[1756714178177,1.23604533,109760.0,109750.0,0.00108755]
[1756714179235,0.83896057,109760.0,109750.0,0.00108755]
[1756714179429,1.23604533,109760.0,109750.0,0.00108755]
[1756714180283,0.83896057,109760.0,109750.0,0.00108755]
[1756714180488,0.83888057,109760.0,109750.0,0.00108755]
[1756714180639,1.23596533,109760.0,109750.0,0.00108755]
[1756714184131,0.83888057,109760.0,109750.0,0.00108755]
[1756714184344,0.66452057,109760.0,109750.0,0.00108755]
[1756714184534,1.23588533,109760.0,109750.0,0.00108755]
[1756714185519,0.83880057,109760.0,109750.0,0.00108755]
[1756714185690,1.23588533,109760.0,109750.0,0.00108755]
[1756714186914,6.23588533,109760.0,109750.0,0.00108755]
[1756714189827,6.28588533,109760.0,109750.0,0.00108755]
[1756714190264,6.32718747,109760.0,109750.0,0.00108755]
[1756714190532,6.32718747,109760.0,109750.0,8.755e-05]
[1756714190785,6.32818747,109760.0,109750.0,8.755e-05]
[1756714190985,6.32618747,109760.0,109750.0,8.755e-05]
[1756714191218,6.33118747,109760.0,109750.0,8.755e-05]
[1756714191705,6.32818747,109760.0,109750.0,8.755e-05]
[1756714191946,6.33118747,109760.0,109750.0,8.755e-05]
[1756714193329,5.93410271,109760.0,109750.0,8.755e-05]
[1756714193347,6.33118747,109760.0,109750.0,8.755e-05]
[1756714193735,6.38118747,109760.0,109750.0,8.755e-05]
[1756714194174,7.57244175,109760.0,109750.0,8.755e-05]
[1756714194415,0.1823067,109710.0,109690.0,0.0721143]
[1756714194651,0.24416,109700.0,109690.0,0.1655411]
[1756714194876,0.24416,109700.0,109690.0,0.0934268]
[1756714195321,0.4264754,109700.0,109690.0,0.0934268]
[1756714195540,0.4264754,109700.0,109690.0,0.00047704]
[1756714195754,0.4264754,109700.0,109690.0,0.00247704]
[1756714196471,0.4538724,109700.0,109690.0,0.00247704]
[1756714196867,0.44821063,109700.0,109690.0,0.00247704]
[1756714197071,0.9729712,109700.0,109690.0,0.00247704]
[1756714197276,0.9729712,109700.0,109690.0,0.00047704]
[1756714197791,0.7989312,109700.0,109690.0,0.00047704]
[1756714197999,0.9739312,109700.0,109690.0,0.01147704]
[1756714198197,0.40184644,109700.0,109690.0,0.00447704]
[1756714198399,0.18483524,109700.0,109690.0,0.00447704]
[1756714198615,0.35883524,109700.0,109690.0,0.00447704]
[1756714198970,0.95917422,109700.0,109690.0,0.00047704]
[1756714199168,0.95917422,109700.0,109690.0,0.00147704]
[1756714199610,0.56208946,109700.0,109690.0,0.00147704]
[1756714199809,0.95917422,109700.0,109690.0,0.00147704]
[1756714200593,0.96017422,109700.0,109690.0,0.00747704]
[1756714200806,0.9738069,109700.0,109690.0,0.00747704]
[1756714201175,1.3138069,109700.0,109690.0,0.00747704]
[1756714201597,6.3138069,109700.0,109690.0,0.00747704]
[1756714201805,6.3387386,109700.0,109690.0,0.00747704]
[1756714202230,6.3137669,109700.0,109690.0,0.00706643]
[1756714202437,6.1398469,109700.0,109690.0,0.00665864]
[1756714202823,6.3137669,109700.0,109690.0,0.00665864]
[1756714203029,6.3137669,109700.0,109690.0,0.006]
[1756714203232,5.74276214,109700.0,109690.0,0.006]
[1756714203445,0.18233202,109690.0,109680.0,0.0004]
[1756714203643,5.84631679,109690.0,109680.0,0.0004]
[1756714203855,5.67239679,109690.0,109680.0,0.0004]
[1756714204058,5.84627679,109690.0,109680.0,0.0004]
[1756714204483,0.84627679,109690.0,109680.0,0.0004]
[1756714204673,0.84627679,109690.0,109680.0,0.0024]
[1756714204883,5.84627679,109690.0,109680.0,0.0024]
[1756714206299,5.84727679,109690.0,109680.0,0.0024]
[1756714206739,5.84627679,109690.0,109680.0,0.0024]
[1756714206901,5.84627679,109690.0,109680.0,0.0004]
[1756714207122,6.08729561,109690.0,109680.0,0.0004]
[1756714207740,5.69021085,109690.0,109680.0,0.0004]
[1756714207893,6.08729561,109690.0,109680.0,0.0004]
[1756714208568,6.09029561,109690.0,109680.0,0.0004]
[1756714210277,5.51933085,109690.0,109680.0,0.0004]
[1756714210489,6.09021561,109690.0,109680.0,0.0004]
[1756714210701,5.91641561,109690.0,109680.0,0.0004]
[1756714210906,6.09017561,109690.0,109680.0,0.0004]
[1756714213168,6.43017561,109690.0,109680.0,0.0004]
[1756714216128,6.43017561,109690.0,109680.0,5.228e-05]
[1756714216335,0.02093882,109680.0,109670.0,0.0004]
[1756714216550,5.86699224,109680.0,109670.0,0.0004]
[1756714216760,6.30689224,109680.0,109670.0,0.0004]
[1756714216975,6.65054624,109680.0,109670.0,0.0004]
[1756714217815,6.65054624,109680.0,109670.0,0.0014]
[1756714219305,6.65246624,109680.0,109670.0,0.0014]
[1756714220078,6.65046624,109680.0,109670.0,0.0014]
[1756714220431,6.65446624,109680.0,109670.0,0.0014]
[1756714220635,6.65446624,109680.0,109670.0,0.0004]
[1756714220843,6.65646624,109680.0,109670.0,0.0004]
[1756714221230,6.65446624,109680.0,109670.0,0.0004]
[1756714221441,6.65646624,109680.0,109670.0,0.0004]
[1756714222143,6.65246624,109680.0,109670.0,0.0004]
[1756714222542,6.65646624,109680.0,109670.0,0.0004]
[1756714222892,6.65638624,109680.0,109670.0,0.0004]
[1756714223345,6.48290624,109680.0,109670.0,0.0004]
[1756714223562,6.65638624,109680.0,109670.0,0.0004]
[1756714225946,6.21648624,109680.0,109670.0,0.0004]
[1756714226155,6.29271364,109680.0,109670.0,0.0004]
[1756714226358,6.04430194,109680.0,109670.0,0.0004]
[1756714226578,5.86932148,109680.0,109670.0,0.0004]
[1756714226788,6.26770194,109680.0,109670.0,0.0004]
[1756714227665,6.09430194,109680.0,109670.0,0.0004]
[1756714227867,6.26770194,109680.0,109670.0,0.0004]
[1756714228084,6.97191619,109680.0,109670.0,0.0004]
[1756714229334,6.99154954,109680.0,109670.0,0.0004]
[1756714229699,7.04154954,109680.0,109670.0,0.0004]
[1756714229915,7.04154954,109680.0,109640.0,0.0004]
[1756714229916,0.54333736,109650.0,109640.0,0.0004]
[1756714230113,1.24724894,109650.0,109640.0,0.0004]
[1756714230323,1.30808881,109650.0,109640.0,0.0004]
[1756714230632,6.31174481,109650.0,109640.0,0.0004]
[1756714231102,6.31174481,109650.0,109640.0,0.0024]
[1756714231274,6.33187276,109650.0,109640.0,0.0024]
[1756714231615,6.38187276,109650.0,109640.0,0.0024]
[1756714231836,6.38187276,109650.0,109640.0,0.0004]
[1756714232469,6.38387276,109650.0,109640.0,0.0004]
[1756714232677,6.43387276,109650.0,109640.0,0.0004]
[1756714232832,6.43387276,109650.0,109640.0,0.0014]
[1756714233046,6.43187276,109650.0,109640.0,0.0014]
[1756714233239,6.43183276,109650.0,109640.0,0.0014]
[1756714233468,6.43183276,109650.0,109640.0,0.0004]
[1756714233990,6.43483276,109650.0,109640.0,9.27e-05]
[1756714234495,0.54335399,109640.0,109630.0,0.00019173]
[1756714234688,6.45710544,109640.0,109630.0,0.00019173]
[1756714234898,6.028694,109640.0,109630.0,0.00019173]
[1756714235119,6.45706544,109640.0,109630.0,0.00019173]
[1756714235523,6.28390544,109640.0,109630.0,0.00019173]
[1756714235740,6.46072144,109640.0,109630.0,0.00019173]
[1756714236143,6.46072144,109640.0,109630.0,0.00119173]
[1756714236495,6.46272144,109640.0,109630.0,0.00119173]
[1756714237144,6.28956144,109640.0,109630.0,0.00119173]
[1756714237493,6.46268144,109640.0,109630.0,0.00119173]
[1756714237897,6.28956144,109640.0,109630.0,0.00119173]
[1756714238341,6.46264144,109640.0,109630.0,0.00119173]
[1756714238613,6.44170262,109640.0,109630.0,0.00119173]
[1756714238824,1.46264144,109640.0,109630.0,0.00119173]
[1756714240514,1.28956144,109640.0,109630.0,0.00119173]
[1756714240719,1.46260144,109640.0,109630.0,0.00119173]
[1756714241145,1.28956144,109640.0,109630.0,0.00119173]
[1756714241563,0.31783601,109640.0,109630.0,0.00119173]
[1756714241773,0.67325118,109640.0,109630.0,0.00119173]
[1756714241984,0.49083601,109640.0,109630.0,0.00119173]
[1756714242433,0.005656,109640.0,109630.0,0.18362354]
[1756714242643,0.248776,109640.0,109630.0,0.2630678]
[1756714242853,0.075776,109640.0,109630.0,0.2630678]
[1756714243239,0.248736,109640.0,109630.0,0.2630678]
[1756714243657,0.248736,109640.0,109630.0,0.18362354]
[1756714243924,0.246736,109640.0,109630.0,0.18362354]
[1756714244135,0.246696,109640.0,109630.0,0.18362354]
[1756714244342,0.246696,109640.0,109630.0,1.04497499]
[1756714244549,0.246696,109640.0,109630.0,1.04397499]
[1756714244550,0.003656,109640.0,109630.0,1.04397499]
[1756714244761,0.003656,109640.0,109630.0,1.13692475]
[1756714245006,0.17339666,109650.0,109640.0,0.52241517]
[1756714245218,0.17339666,109650.0,109640.0,1.04376662]
[1756714245634,0.00047666,109650.0,109640.0,1.04376662]
[1756714246287,0.00047666,109650.0,109640.0,0.61539518]
[1756714246507,0.00047666,109650.0,109640.0,1.13871638]
[1756714247359,0.00047666,109650.0,109640.0,1.17939418]
[1756714248241,0.00047666,109650.0,109640.0,1.17739418]
[1756714248454,0.00047666,109650.0,109640.0,1.18539418]
[1756714248881,0.00047666,109650.0,109640.0,1.18139418]
[1756714249104,0.00147666,109650.0,109640.0,1.18839418]
[1756714249843,0.00147666,109650.0,109640.0,1.20123605]
[1756714250914,0.00147666,109650.0,109640.0,0.77286461]
[1756714251113,0.00147666,109650.0,109640.0,1.20123605]
[1756714251708,0.00147666,109650.0,109640.0,1.62391605]
[1756714252506,0.00147666,109650.0,109640.0,1.62387605]
[1756714252892,0.00147666,109650.0,109640.0,1.64481487]
[1756714254229,0.0721143,109690.0,109680.0,0.18234865]
[1756714254446,0.0721143,109690.0,109680.0,0.21890765]
[1756714254882,0.24272,109700.0,109690.0,0.18233202]
[1756714254883,0.24268,109700.0,109690.0,0.18233202]
[1756714255472,0.270074,109700.0,109690.0,0.18233202]
[1756714257295,0.269994,109700.0,109690.0,0.18233202]
[1756714257501,0.88068112,109700.0,109680.0,0.036559]
[1756714257709,0.42837144,109690.0,109680.0,0.036559]
[1756714258584,0.61070346,109690.0,109680.0,0.036559]
[1756714258786,0.61070346,109690.0,109680.0,8.761e-05]
[1756714258990,0.18333202,109690.0,109680.0,8.761e-05]
[1756714259174,0.61170346,109690.0,109680.0,8.761e-05]
[1756714259374,0.70468347,109690.0,109680.0,0.00408761]
[1756714259574,0.70468347,109690.0,109680.0,8.761e-05]
[1756714259575,0.72562229,109690.0,109680.0,8.761e-05]
[1756714259774,0.70468347,109690.0,109680.0,8.761e-05]
[1756714259983,0.72562229,109690.0,109680.0,0.00408761]
[1756714260192,6.06562229,109690.0,109680.0,0.00408761]
[1756714261252,6.28474229,109690.0,109680.0,0.00408761]
[1756714262126,5.85637085,109690.0,109680.0,0.00408761]
[1756714262335,1.28474229,109690.0,109680.0,0.00408761]
[1756714262548,1.45702229,109690.0,109680.0,0.00408761]
[1756714263188,1.28474229,109690.0,109680.0,0.00408761]
[1756714263394,1.45702229,109690.0,109680.0,0.00408761]
[1756714263827,0.48534001,109690.0,109680.0,0.00408761]
[1756714264089,0.001,109690.0,109680.0,0.18643626]
[1756714264317,0.17324,109690.0,109680.0,0.26615341]